Cogmind - Beta 10 @@@ ROGUE MODE // 2020.09.10 @ 19:03:19 Player: PlasticHeart Result: Destroyed by EX-DEC with AWS/EX-DEC Performance ------------- Evolutions (1) 500 Regions Visited (5) 1000 Robots Destroyed (76) 380 Value Destroyed (1247) 1247 Prototype IDs (31) 620 Alien Tech Used (0) 0 Bonus (-220) -220 TOTAL SCORE: 3527 Bonus ------- Follower Combat Kills 195 Aligned with FarCom 300 Friendly Fire -715 Cogmind --------- Core Integrity 0/400 Matter 20/300 Energy 25/100 System Corruption 1% Temperature Cool (97) Movement Treading (190) Ox1 Location -9/Exiles Parts ------- > --- POWER (1) -------- (None) > --- PROPULSION (2) --- Armored Treads Armored Treads > --- UTILITY (4) ------ Large Storage Unit Large Storage Unit Large Storage Unit > --- WEAPON (2) ------- Firepult > --- INVENTORY (22) --- Light Nuclear Core Light Nuclear Core Wheel Compact Wheel Compact Wheel Compact Wheel Large Storage Unit Large Storage Unit Large Storage Unit Experimental Sensor Array Hacking Suite Sensor Drone Bay (20/20) Heavy Assault Rifle Heavy Assault Rifle Mini Grenade Launcher Datajack Peak State ------------ > --- POWER ------------ Heavy Ion Engine > --- PROPULSION ------- Armored Treads Armored Treads > --- UTILITY ---------- Medium Storage Unit Large Storage Unit Large Storage Unit Large Storage Unit > --- WEAPON ----------- Firepult > --- INVENTORY -------- Heavy Ion Engine Light Nuclear Core Light Nuclear Core Armored Treads Armored Treads Wheel Compact Wheel Compact Wheel Compact Wheel Large Storage Unit Large Storage Unit Large Storage Unit Experimental Sensor Array Hacking Suite Sensor Drone Bay Heavy Assault Rifle Heavy Assault Rifle Heavy Battle Rifle Mini Grenade Launcher Datajack [Rating: 38] Favorites ----------- Power Light Ion Engine Engine Light Ion Engine Power Core Light Nuclear Core Propulsion Compact Wheel Treads Armored Treads Wheel Compact Wheel Utility Large Storage Unit Device AS-neutralizer No. 17b Storage Large Storage Unit Weapon Autogun Energy Cannon Firepult Ballistic Gun Autogun Launcher Mini Grenade Launcher Build | -11 -10 -10 -9 -9 -9 ------- Run | Scr Mat Min Mat Min Exi Slots Evolved 2 | . . . 2 . . Power . | . . . . . . Propulsion . | . . . . . . Utility 2 | . . . 2 . . Weapon . | . . . . . . Parts Attached 59 | 6 11 3 17 9 13 Power 8 | 1 1 . 4 1 1 Engine 7 | 1 1 . 3 1 1 Core 1 | . . . 1 . . Reactor . | . . . . . . Propulsion 17 | 2 1 3 5 2 4 Treads 4 | . . . . . 4 Leg . | . . . . . . Wheel 13 | 2 1 3 5 2 . Hover . | . . . . . . Flight . | . . . . . . Utility 14 | 1 4 . 6 2 1 Device 2 | . . . . 1 1 Storage 12 | 1 4 . 6 1 . Processor . | . . . . . . Hackware . | . . . . . . Protection . | . . . . . . Artifact . | . . . . . . Weapon 20 | 2 5 . 2 4 7 Energy Gun . | . . . . . . Energy Cannon 2 | . . . . . 2 Ballistic Gun 17 | 2 5 . 2 3 5 Ballistic Cannon . | . . . . . . Launcher 1 | . . . . 1 . Special Weapon . | . . . . . . Impact Weapon . | . . . . . . Slashing Weapon . | . . . . . . Piercing Weapon . | . . . . . . Special Melee Weapon . | . . . . . . Unidentified Prototypes 4 | . . . 1 1 2 Parts Lost 23 | . 2 3 6 5 7 Power 5 | . . . 2 1 2 Propulsion 10 | . 1 3 2 2 2 Utility 1 | . . . . . 1 Weapon 7 | . 1 . 2 2 2 Highest Loss Streak 5 | . 1 1 2 5 3 Average Slot Usage (%) 96 | . 94 98 99 94 94 Engine 10 | . 14 14 7 9 8 Treads 4 | . . . . . 18 Wheel 19 | . 27 26 21 22 3 Storage 36 | . 23 28 43 44 40 Ballistic Gun 23 | . 27 28 22 17 20 Naked Turns . | . . . . . . Heaviest Build 73 | 11 41 41 70 70 73 Greatest Support 40 | 26 32 32 26 20 40 Greatest Overweight (x) 4 | . 1 4 4 3 3 Average Overweight (x) 1 | . . 1 2 2 1 Largest Inventory Capacity 26 | 6 16 16 26 26 26 Average Capacity 20 | 5 10 16 25 25 24 Most Carried 26 | 3 14 16 26 25 25 Average Carried 17 | . 8 15 20 23 19 Final Capacity 26 | 6 16 16 26 26 22 Final Carried 25 | 2 14 16 23 25 16 Class Distribution -------------------- 63% | Hauler-Mutant 36% | Mutant Dominant Class ---------------- Mutant | -10/Materials Mutant | -10/Mines Hauler-Mutant | -9/Materials Hauler-Mutant | -9/Mines Hauler-Mutant | -9/Exiles Resources | -11 -10 -10 -9 -9 -9 ----------- Run | Scr Mat Min Mat Min Exi Matter Collected 2150 | 284 470 252 876 117 151 Remotely . | . . . . . . Salvage Created 2515 | 78 539 383 1152 96 267 Parts 162 | 2 36 20 71 12 21 Haulers Intercepted 5 | . 2 . 3 . . Recyclers Shooed 4 | . 2 . 2 . . Parts Field Recycled . | . . . . . . Retrieved Matter . | . . . . . . Parts Self-Destructed . | . . . . . . Prevented . | . . . . . . Kills | -11 -10 -10 -9 -9 -9 ------- Run | Scr Mat Min Mat Min Exi Combat Hostiles Destroyed 45 | . 15 7 15 4 4 Guns 40 | . 15 7 15 . 3 AOE 5 | . . . . 4 1 Classes Destroyed 13 | 1 5 . 5 . 2 Worker 5 | . 1 . 4 . . Builder 2 | . . . 1 1 . Hauler 5 | . 2 . 3 . . Recycler 7 | 1 . 2 3 1 . Operator 3 | . 1 . 2 . . Watcher 2 | . . . 2 . . Swarmer 18 | . 6 2 6 4 . Grunt 16 | . 9 5 2 . . Brawler 1 | . . . 1 . . Duelist 1 | . . . 1 . . Sentry 5 | . . . 5 . . Zionite 2 | . . . . . 2 Assembled 7 | . . . . . 7 Best Kill Streak 5 | 1 5 2 5 4 3 Combat Bots Only 5 | . 5 2 5 4 2 Max Kills in Single Turn 4 | 1 1 1 1 3 4 Gunslinging . | . . . . . . Exploded 3 | . . . . 3 1 Melee . | . . . . . . Uniques/NPCs Destroyed 2 | . . . . . 2 8R-AWN (-9/Exiles) EX-BIN (-9/Exiles) Combat | -11 -10 -10 -9 -9 -9 -------- Run | Scr Mat Min Mat Min Exi Damage Taken 4269 | . 580 338 624 710 2017 Core 630 | . 125 94 73 98 240 Absorbed by Shields . | . . . . . . Core Remaining (%) 56 | 100 . 12 . . . Volleys Fired 238 | 4 49 29 93 5 58 Largest 2 | 2 2 2 2 2 2 Hottest 250 | 40 46 46 46 46 250 Shots Fired 462 | 8 97 58 186 7 106 Gun 456 | 8 97 58 186 4 103 Cannon 3 | . . . . . 3 Launcher 3 | . . . . 3 . Special . | . . . . . . Kinetic 456 | 8 97 58 186 4 103 Thermal 3 | . . . . . 3 Explosive 3 | . . . . 3 . Electromagnetic . | . . . . . . Robot Hit Streak 20 | 1 7 6 11 2 20 Robot Miss Streak 6 | 3 6 3 4 1 6 Penetration Max . | . . . . . . Secondary Targets 5 | . . 3 2 . . Max Gunslinging Chain 1 | . . 1 1 . . Shots Hit Robots 282 | 2 61 35 110 4 70 Core Hits 127 | 2 35 14 38 6 32 Critical Hits 7 | . . 1 . . 6 Critical Kills 1 | . . . . . 1 Critical Parts Destroyed 5 | . . 1 . . 4 Melee Attacks . | . . . . . . Impact . | . . . . . . Slashing . | . . . . . . Piercing . | . . . . . . Sneak Attacks . | . . . . . . Combat Hostiles . | . . . . . . Follow-up Attacks . | . . . . . . Damage Inflicted 5256 | 49 879 491 1700 436 1701 Guns 4402 | 49 879 491 1700 50 1233 Cannons 90 | . . . . . 90 Explosions 764 | . . . . 386 378 Melee . | . . . . . . Ramming . | . . . . . . Kinetic 4402 | 49 879 491 1700 50 1233 Thermal 468 | . . . . . 468 Explosive 386 | . . . . 386 . Electromagnetic . | . . . . . . Impact . | . . . . . . Slashing . | . . . . . . Piercing . | . . . . . . Highest Corruption . | . . . . . . Average Corruption . | . . . . . . Corruption Purged . | . . . . . . Overload Shots . | . . . . . . Overflow Damage 44 | . . . . 29 15 Projectiles . | . . . . . . Explosions 44 | . . . . 29 15 Melee . | . . . . . . Knockbacks . | . . . . . . Impact . | . . . . . . Kinetic . | . . . . . . Secondary . | . . . . . . Self-Inflicted Damage 49 | . . . . 49 . Shots 2 | . . . . 2 . Rammed . | . . . . . . Targets Rammed . | . . . . . . Kicked . | . . . . . . Crushed . | . . . . . . Highest Temperature 390 | 6 11 35 20 2 390 Average Temperature 35 | 6 3 11 3 1 169 Received Heat Transfer 435 | . 171 156 108 . . Siege Activations . | . . . . . . Robots Corrupted . | . . . . . . Combat Hostiles . | . . . . . . Parts Fried . | . . . . . . Impact Corruptions . | . . . . . . Robots Melted 1 | . . . . . 1 Combat Hostiles . | . . . . . . Parts Melted 1 | . . . . . 1 Heat Transferred 2480 | . . . . . 2480 Parts Sabotaged . | . . . . . . Parts Stolen . | . . . . . . Parts Stripped . | . . . . . . Power Chain Reactions . | . . . . . . Missiles Intercepted . | . . . . . . Alert | -11 -10 -10 -9 -9 -9 ------- Run | Scr Mat Min Mat Min Exi Peak Influence 389 | 5 264 244 389 175 . Initial 80 | . 3 37 62 80 . Average 180 | 1 170 139 236 124 . Maximum Alert Level 1 | . 1 1 1 . . Low Security (%) 60 | 100 54 85 34 100 . Level 1 39 | . 45 14 65 . . Level 2 . | . . . . . . Level 3 . | . . . . . . Level 4 . | . . . . . . Level 5 . | . . . . . . High Security . | . . . . . . Max Security . | . . . . . . Squads Dispatched 4 | . 3 . 1 . . Investigation 1 | . 1 . . . . Extermination . | . . . . . . Reinforcement 3 | . 2 . 1 . . Assault . | . . . . . . Garrison . | . . . . . . Intercept . | . . . . . . Construction Impeded . | . . . . . . Haulers Reinforced . | . . . . . . Stealth | -11 -10 -10 -9 -9 -9 --------- Run | Scr Mat Min Mat Min Exi Distress Signals 3 | . 3 . . . . Communications Jammed . | . . . . . . Distress Signals . | . . . . . . Times Spotted 86 | . 28 12 24 6 16 Peak Tracking Total 5 | . 5 3 5 4 5 Tactical Retreats 6 | . 1 . . 1 4 Traps | -11 -10 -10 -9 -9 -9 ------- Run | Scr Mat Min Mat Min Exi Traps Triggered 2 | . 2 . . . . Indirectly . | . . . . . . Trap Hack Attempts . | . . . . . . Triggered . | . . . . . . Disarmed . | . . . . . . Reprogrammed . | . . . . . . Reused 3 | . . . . . 3 Traps Extracted . | . . . . . . Installed 3 | . . . . . 3 Triggered . | . . . . . . Machines | -11 -10 -10 -9 -9 -9 ---------- Run | Scr Mat Min Mat Min Exi Machines Disabled 10 | . . 1 1 . 8 Max in Single Turn 2 | . . 1 1 . 2 Machines Sabotaged . | . . . . . . Garrisons Compromised . | . . . . . . Overloaded Fab Kills . | . . . . . . Fab Network Shutdowns . | . . . . . . Hacking | -11 -10 -10 -9 -9 -9 --------- Run | Scr Mat Min Mat Min Exi Machines Accessed 14 | . 2 . 9 2 1 Terminals 10 | . 2 . 7 1 . Fabricators . | . . . . . . Repair Stations 1 | . . . 1 . . Recycling Units . | . . . . . . Scanalyzers 1 | . . . 1 . . Garrison Access . | . . . . . . Total Hacks 28 | . 4 . 21 2 1 Successful 21 | . 2 . 16 2 1 Failed 7 | . 2 . 5 . . Catastrophic . | . . . . . . Database Lockouts . | . . . . . . Manual 6 | . . . 4 1 1 Terminals 22 | . 4 . 17 1 . Fabricators . | . . . . . . Repair Stations 2 | . . . 2 . . Recycling Units . | . . . . . . Scanalyzers 2 | . . . 2 . . Garrison Access . | . . . . . . Terminal Hacks 12 | . 2 . 8 1 1 Prototype ID Bank 2 | . . . 2 . . Open Door 1 | . . . . 1 . Terminal Index 1 | . 1 . . . . Scanalyzer Index 1 | . . . 1 . . Locate Traps 4 | . 1 . 3 . . Hauler Manifests 1 | . . . 1 . . Zone Layout 1 | . . . 1 . . EX-Prototype ID Bank 1 | . . . . . 1 Fabricator Hacks . | . . . . . . Repair Station Hacks 2 | . . . 2 . . Scan Component 1 | . . . 1 . . Repair 1 | . . . 1 . . Recycling Unit Hacks . | . . . . . . Scanalyzer 2 | . . . 2 . . Insert Component 1 | . . . 1 . . Analyze 1 | . . . 1 . . Garrison Access Hacks . | . . . . . . Unauthorized Hacks 5 | . . . 4 1 . Terminals 5 | . . . 4 1 . Track 3 | . . . 2 1 . Botnet 1 | . . . 1 . . Disrupt 1 | . . . 1 . . Fabricators . | . . . . . . Repair Stations . | . . . . . . Recycling Units . | . . . . . . Scanalyzers . | . . . . . . Garrison Access . | . . . . . . Data Cores Recovered 1 | . . . 1 . . Used 1 | . . . 1 . . Hacking Detections 6 | . 1 . 4 1 . Full Trace Events . | . . . . . . Feedback Events . | . . . . . . Feedback Blocked . | . . . . . . Robot Schematics Acquired . | . . . . . . Robots Built . | . . . . . . Matter . | . . . . . . Time . | . . . . . . Total Robot Build Rating . | . . . . . . Part Schematics Acquired 1 | . . . 1 . . Parts Built . | . . . . . . Matter . | . . . . . . Time . | . . . . . . Total Part Build Rating . | . . . . . . Parts Repaired 1 | . . . 1 . . Time 80 | . . . 80 . . Parts Recycled . | . . . . . . Recycled Matter . | . . . . . . Retrieved Matter . | . . . . . . Retrieved Components . | . . . . . . Parts Scanalyzed 1 | . . . 1 . . Part Schematics Acquired 1 | . . . 1 . . Parts Damaged . | . . . . . . Bothacking | -11 -10 -10 -9 -9 -9 ------------ Run | Scr Mat Min Mat Min Exi Used RIF Installer . | . . . . . . Robots Hacked . | . . . . . . Non-combat . | . . . . . . Combat . | . . . . . . Robot Hacks Applied . | . . . . . . Relay Couplers Released . | . . . . . . Robots Rewired . | . . . . . . Allies Hacked . | . . . . . . Hacks Repelled . | . . . . . . Allies | -11 -10 -10 -9 -9 -9 -------- Run | Scr Mat Min Mat Min Exi Total Allies 5 | . . 3 . 2 . Largest Group 3 | . . 3 3 2 . Highest-Rated Group 41 | . . 40 40 41 . Highest-Rated Ally 31 | . . 16 16 31 . Total Orders 1 | . . . . 1 . RETURN 1 | . . . . 1 . Ally Attacks 54 | . . 20 33 1 . Total Damage 650 | . . 247 382 21 . Kills 8 | . . 5 3 . . Allies Corrupted . | . . . . . . Allies Melted . | . . . . . . Intel | -11 -10 -10 -9 -9 -9 ------- Run | Scr Mat Min Mat Min Exi Robot Analysis Total . | . . . . . . Derelict Logs Recovered 2 | . . 1 . 1 . Drone Launches 1 | . . . . 1 . Drone Recoveries 1 | . . . . 1 . Exploration | -11 -10 -10 -9 -9 -9 ------------- Run | Scr Mat Min Mat Min Exi Turns Passed 4187 | 53 863 631 1239 458 943 Spaces Moved 2861 | 34 660 499 833 391 444 Core 1 | 1 . . . . . Treads 323 | . . . . . 323 Legs . | . . . . . . Wheels 2537 | 33 660 499 833 391 121 Hover . | . . . . . . Flight . | . . . . . . Fastest Speed 50 | 50 90 100 110 100 110 Average Speed 115 | 87 99 106 110 108 168 Slowest Speed 190 | 90 110 120 140 110 190 Overloaded Moves . | . . . . . . Propulsion Burnouts . | . . . . . . Robots Hopped . | . . . . . . Cave-ins Triggered . | . . . . . . Exploration Rate (%) 61 | 3 77 96 55 68 67 Regions Visited 5 Branch Regions 3 Pre-discovered Areas . | . . . . . . Known Exits Taken . | . . . . . . Unknown Exits Taken 5 | 1 1 1 1 1 . Scrap Searched 2 | . . 1 . 1 . Spaces Dug . | . . . . . . Terrain Destroyed 45 | . . . . 26 19 Melee . | . . . . . . Projectile 5 | . . . . . 5 AOE 40 | . . . . 26 14 Terrain Rammed . | . . . . . . Walls Destroyed . | . . . . . . Machines Disabled . | . . . . . . Actions | -11 -10 -10 -9 -9 -9 --------- Run | Scr Mat Min Mat Min Exi Total 3336 | 47 772 553 1008 417 539 Wait 81 | . 27 14 32 3 5 Move 2856 | 33 659 498 832 390 444 Hop . | . . . . . . Pick Up 63 | 4 17 7 20 10 5 Fast Attach 8 | 4 1 . 2 . 1 Attach 32 | 2 4 3 7 5 11 Detach . | . . . . . . Swap 19 | . 6 . 8 4 1 Drop 36 | . 9 2 14 . 11 Fire 238 | 4 49 29 93 5 58 Melee . | . . . . . . Ram . | . . . . . . Kick . | . . . . . . Crush . | . . . . . . Escape Stasis . | . . . . . . Rewire . | . . . . . . Trap 3 | . . . . . 3 Miscellaneous . | . . . . . . Route ------- -11/Scrapyard -10/Materials (discovered 3 exits: *Mat x2 / [*Min]) -10/Mines -9/Materials (discovered 3 exits: [*Mat] / *Min x2) -9/Mines (discovered 4 exits: [*Mat x2] / *Exi / [*Zio]) -9/Exiles History --------- Turn | Location | Event 11 | -11/Scrapyard | Discovered new exit (range 14) 54 | -11/Scrapyard | Entered Materials 102 | -10/Materials | Discovered new exit (range 14) 163 | -10/Materials | Discovered new exit (range 15) 231 | -10/Materials | Discovered new exit (range 16) 316 | -10/Materials | Build established: Mutant 917 | -10/Materials | Entered Mines 919 | -10/Mines | Core integrity fell below 50% 977 | -10/Mines | Assisted by bots powering up and referring to "LRC-V3" 1114 | -10/Mines | A weapon hastily lodged in a ceiling crevice suddenly fell to the ground 1349 | -10/Mines | Learned Materials emergency access door positions 1363 | -10/Mines | Found a damaged Exp. Sensor Array with a note attached 1366 | -10/Mines | Found Prototype Device 1404 | -10/Mines | Core integrity fell below 20% 1531 | -10/Mines | Discovered new exit (range 11) 1548 | -10/Mines | Entered Materials 1548 | -9/Materials | Accompanied by 3 allies 1548 | -9/Materials | Evolved 2 slots: Utility x2 1587 | -9/Materials | Discovered new exit (range 5) 1859 | -9/Materials | Build established: Hauler-Mutant 1989 | -9/Materials | Discovered new exit (range 16) 2442 | -9/Materials | Identified Exp. Sensor Array 2483 | -9/Materials | Discovered new exit (range 14) 2534 | -9/Materials | Repaired Exp. Sensor Array 2787 | -9/Materials | Entered Mines 2804 | -9/Mines | A Derelict revealed a hidden shortcut to a safe place 2835 | -9/Mines | Discovered new exit (range 8) 2878 | -9/Mines | Discovered new exit (range 12) 2896 | -9/Mines | Found the Drone Emporium 2902 | -9/Mines | Found Prototype Device 2903 | -9/Mines | Identified Sensor Drone Bay 3005 | -9/Mines | Assembled infested the area 3098 | -9/Mines | Lost 5 parts (1p2n2w) 3198 | -9/Mines | Learned location of 1 exit from Lower Caves 3219 | -9/Mines | Found a hidden stash of uninstalled traps 3241 | -9/Mines | Discovered new exit (range 5) 3245 | -9/Mines | Entered Exiles 3271 | -9/Exiles | Met 8R-AWN 3291 | -9/Exiles | Met EX-HEX 3321 | -9/Exiles | Met EX-BIN 3335 | -9/Exiles | Aligned with FarCom system 3336 | -9/Exiles | Given EX-Vault access code 3362 | -9/Exiles | Opened EX-Vault 3382 | -9/Exiles | Found Firepult 3424 | -9/Exiles | Warned to stay clear of 0b10 Research branches 3561 | -9/Exiles | Attacked by the Exiles 3573 | -9/Exiles | Core integrity fell below 50% 3703 | -9/Exiles | Core integrity fell below 20% 3732 | -9/Exiles | Destroyed 8R-AWN 3733 | -9/Exiles | Lost 3 parts (1n2w) 3758 | -9/Exiles | Found Prototype Ballistic Gun 3759 | -9/Exiles | Identified 8R-AWN's Boregun 3849 | -9/Exiles | Found Prototype Device 3849 | -9/Exiles | Identified AS-neutralizer No. 17b 4155 | -9/Exiles | Destroyed EX-BIN 4188 | -9/Exiles | Destroyed by EX-DEC with AWS/EX-DEC Last Messages --------------- 04149_ Destroyed EX Chip 1. 04149_ HV Slug penetrates EX-BIN. 04155_ EX-BIN: "You can't kill me, my evil twin will get revenge!" 04155_ EX-BIN destroyed. 04158_ HV Slug penetrates Testing Apparatus. 04161_ HV Slug penetrates EX-HEX. 04161_ EX-HEX suffers critical hit. 04161_ Destroyed Gravmag Array. 04164_ HV Slug penetrates EX-HEX. 04167_ Destroyed Corruption Screen. 04167_ HV Slug penetrates CG-RRX(z). 04167_ CG-RRX(z) suffers critical hit. 04167_ CG-RRX(z) destroyed. 04183_ Acquired 20 matter. 04185_ Dropped Hvy. Assault Rifle. 04185_ Dropped 8R-AWN's Boregun. 04186_ Hvy. Ion Engine destroyed. 04187_ ZX-C33 critical meltdown. 04187_ Mak. Power Source melted. 04187_ Machine disabled. Map ----- +----------------------------------------------------+ | ?????????????????????#" " " | | ?????????????????????#"""" ""## ##" | | ?????????????????????#"" "#### ### | | ?????????????????????#" """"##??# #?? | | ?????????????????????#""" """#???# #?? | | ?????????????????????## ""##???! ?? | | ??????????????????????#"" """##????" ? | | ??????????????????????##""" ##????#" ? | | ???????????????????????##"""" ##?????#!!""!" | | ????????????????????????### #??????####### | | ??????????????????????????##### ##????????????? | | ??????????????????????????????## #?????????????? | | ???????????????????????????????# #?????????????? | | ???????????????????????????????# #?????????????? | | ???????????????????????????????# #?????????????? | | ???????????????????????????????# #?????????????? | | ????????????????????#""""??????# #?????????????? | | ?????????????????????""""""????# #?????????????? | | ????????????????????#" """????# #?????????????? | | ?????????????????????"" ""????# #?????????????? | | ?????????????????????"" "????# #?????????????? | | ???????????#"""########"""###### ########??????? | | ???????????? """ """""" """""""#??????? | | ??????????" " "" !! "#??????? | | ?????????? z c [!!!!= " "??? | | ?????????? @!!c!! " "???? | | ?????????? z% =*!!!! " "???? | | ?????????? "" #"" ???? | | ??????????? """" " """" """""#??????? | | ???????????#"""###""###"""########"""######??????? | | ??????????????????"??"" "??????? ""??????????? | | ?????????????????????""" "??????? """??????????? | | ????????????????????#" " ???????"""""??????????? | | ?????????????????????""""""??????? """???????????? | | ??????????????????????"""""???????""?????????????? | | ????????????????????????#?#??????????????????????? | | ?????????????????????????????????????????????????? | | ?????????????????????????????????????????????????? | | ?????????????????????????????????????????????????? | | ?????????????????????????????????????????????????? | | | | | | | | | | | | | | | | | | | | | +----------------------------------------------------+ Best States ------------- Heat Dissipation 28 Energy Generation 14 Energy Capacity 280 Matter Stores 300 Matter Capacity 300 Sight Range 16 Terrain Scan Density 10 Evasion (%) 44 Recoil Reduction 2 Item Schematics ----------------- Exp. Sensor Array | -9/Materials | Scanalyzed Robot Schematics ------------------ None Fabricated ------------ Nothing Alien Tech Used ----------------- None Achievements -------------- None Challenges ------------ None Game ------ Seed NullMasterLoader Manual? 0 Play Time 00:31:54 Cumulative 777.2 hours Start 2020.09.10 @ 18:29:58 End 2020.09.10 @ 19:03:19 Sessions 1 Manual Loads 0 Difficulty Rogue Special Mode None Game No. 417 Rogue 417 Adventurer 0 Explorer 0 Win Type - Total 63 Types 34/5/13/6/1/1/3/0/0 Lore% 88 Gallery% 89 Achievement% 75 Wizard Run 0 Options --------- ASCII 0 Keyboard 0 Movement Mouse Keybinds 0 Fullscreen 0 Font 32/Smallcaps Map View 76x50 Tactical HUD 1 Map Filters NONE Filters NONE Steam 0 RUN: 1b3dedee-51b4-4f20-816f-9f12981a8dcd